bitfinex-derivatives/quotes_ETHF0:USTF0_20251118
["timestamp","ask_amount","ask_price","bid_price","bid_amount"]
[1763470291336,0.00765821,3054.2,3054.1,0.2363]
[1763470297434,3.2078,3054.5,3054.4,0.2363]
[1763470298236,3.2078,3054.9,3054.5,0.1354]
[1763470298440,0.7343077,3054.8,3054.7,0.2363]
[1763470300638,0.7343077,3054.8,3054.5,0.1354]
[1763470306349,0.7343077,3054.8,3054.7,0.2363]
[1763470308451,0.7343077,3054.8,3054.5,0.1354]
[1763470309853,0.7343077,3054.8,3054.7,0.2363]
[1763470310454,0.7343077,3054.8,3054.5,0.1354]
[1763470311044,0.7343077,3054.8,3054.7,0.2363]
[1763470311249,0.34086655,3054.8,3054.7,0.2363]
[1763470311649,0.34086655,3054.8,3054.5,0.1354]
[1763470312248,0.34086655,3054.8,3054.7,0.2363]
[1763470312650,0.34086655,3054.8,3054.5,0.1354]
[1763470312848,0.34086655,3054.8,3054.7,0.2363]
[1763470315360,0.34086655,3054.8,3054.5,0.1354]
[1763470315653,3.21053027,3054.9,3054.5,0.1354]
[1763470320856,5.59018925,3054.8,3053.3,1.74713367]
[1763470321157,3.2078,3053.8,3053.1,4.95493367]
[1763470321353,2.8142246,3053.8,3053.7,0.231]
[1763470321746,2.8142246,3053.8,3053.1,4.95493367]
[1763470321747,1.17801897,3054.3,3054.2,0.231]
[1763470322352,4.38581897,3054.4,3054.3,0.231]
[1763470323152,4.38581897,3054.4,3054.0,0.1479]
[1763470323352,0.74134158,3054.3,3054.0,0.1479]
[1763470324156,0.74134158,3054.3,3054.2,0.231]
[1763470325757,0.74134158,3054.3,3054.0,0.1479]
[1763470325954,1.91936055,3054.3,3054.0,0.1479]
[1763470326264,1.76702846,3054.1,3053.5,0.00272692]
[1763470326449,4.97482846,3053.6,3053.5,0.00272692]
[1763470326649,5.71617004,3053.6,3053.5,0.15062692]
[1763470327266,3.94914158,3053.6,3053.5,0.15062692]
[1763470327468,5.12501677,3053.6,3053.5,0.38162692]
[1763470327657,3.94914158,3053.6,3053.5,0.38162692]
[1763470328057,3.94914158,3053.6,3053.5,0.15062692]
[1763470328557,5.12501677,3053.6,3053.5,0.00272692]
[1763470328866,5.12501677,3053.6,3053.5,2.692e-05]
[1763470329367,5.12335593,3053.6,3053.5,2.692e-05]
[1763470330766,9.94914158,3053.6,3052.5,0.1479]
[1763470330965,3.2078,3052.6,3052.5,0.1479]
[1763470331764,3.2116393,3052.6,3052.5,0.15208114]
[1763470333762,3.2116393,3052.6,3052.5,0.00418114]
[1763470333972,3.2116393,3052.6,3052.5,0.38308114]
[1763470334667,3.2116393,3052.6,3052.5,0.15208114]
[1763470336470,3.2116393,3052.6,3051.8,3.2078]
[1763470336471,7.38204711,3052.6,3051.5,0.1479]
[1763470336672,3.2078,3052.1,3051.5,0.1479]
[1763470337466,3.2078,3052.1,3052.0,0.15042459]
[1763470337869,3.2078,3052.1,3052.0,0.00252459]
[1763470338573,3.2078,3052.1,3052.0,0.15042459]
[1763470339372,9.94163713,3052.1,3051.0,0.1479]
[1763470339565,9.94163713,3052.1,3050.5,0.1479]
[1763470339566,3.2078,3051.1,3050.5,0.1479]
[1763470339876,3.2078,3050.6,3050.5,0.1479]
[1763470340570,3.2078,3050.6,3050.5,3.043e-05]
[1763470340764,3.94194276,3050.6,3050.0,0.1479]
[1763470340961,4.44,3051.0,3050.0,0.1479]
[1763470340962,3.2078,3050.1,3050.0,0.1479]
[1763470341168,3.2078,3050.1,3049.0,0.1479]
[1763470341372,1.17273471,3050.8,3049.0,0.1479]
[1763470341373,3.2078,3049.6,3049.0,0.1479]
[1763470341765,3.21107362,3049.6,3049.5,0.15185996]
[1763470342163,3.21107362,3049.6,3049.0,0.1479]
[1763470342476,3.21107362,3049.6,3048.5,0.1372]
[1763470342477,3.2078,3049.1,3048.5,0.1372]
[1763470342770,3.2078,3049.1,3049.0,0.381]
[1763470343176,3.2078,3049.1,3049.0,0.38446495]
[1763470343679,0.00327362,3049.6,3049.5,0.381]
[1763470343881,0.00327362,3049.6,3049.5,0.1372]
[1763470344578,0.00327362,3049.6,3049.5,0.381]
[1763470346280,3.21271031,3050.1,3050.0,0.381]
[1763470346985,0.00491031,3050.1,3050.0,0.381]
[1763470347190,0.00726712,3050.1,3050.0,0.381]
[1763470347780,0.00726712,3050.1,3050.0,6.381]
[1763470347981,3.2078,3050.9,3050.8,0.2481]
[1763470348382,3.2078,3050.9,3050.5,0.1371]
[1763470348992,3.21061362,3050.9,3050.5,0.1371]
[1763470349482,3.21061362,3050.9,3050.8,0.2481]
[1763470352295,0.00281362,3050.9,3050.8,3.4559]
[1763470352492,17.46540684,3051.8,3051.5,0.1371]
[1763470353496,17.46936601,3051.8,3051.5,0.14086224]
[1763470353897,7.976,3051.7,3051.5,0.14086224]
[1763470354689,0.73215447,3051.6,3051.0,0.1371]
[1763470354897,3.2078,3051.1,3051.0,0.1371]
[1763470355598,3.2078,3051.1,3051.0,0.13994613]
[1763470355990,3.2078,3051.1,3051.0,0.38804613]
[1763470358901,3.2078,3051.1,3051.0,0.13994613]
[1763470359199,3.2078,3051.1,3051.0,0.38804613]
[1763470361204,3.2078,3051.5,3051.4,0.2481]
[1763470361504,3.94250968,3051.5,3051.0,0.13994613]
[1763470361706,0.73470968,3051.4,3051.0,0.13994613]
[1763470363501,0.73470968,3051.4,3051.3,0.2481]
[1763470364598,3.2078,3051.5,3051.4,0.2481]
[1763470365304,14.26156601,3051.8,3051.7,0.2481]
[1763470365607,0.74081958,3051.8,3051.5,0.1371]
[1763470366398,1.17273471,3051.7,3051.5,0.1371]
[1763470366603,1.17273471,3051.6,3051.5,0.1371]
[1763470367510,0.73686041,3051.6,3051.5,0.1371]
[1763470367711,2.49596248,3051.6,3051.5,0.1371]
[1763470367896,1.75910207,3051.6,3051.5,0.1371]
[1763470368101,1.90999117,3051.6,3051.5,0.1371]
[1763470368308,1.17313076,3051.6,3051.5,0.3852]
[1763470368508,1.17708993,3051.8,3051.7,0.2481]
[1763470368706,0.74402132,3051.8,3051.7,0.2481]
[1763470369802,1.91715208,3051.8,3051.5,0.1371]
[1763470370104,1.91319291,3051.7,3051.5,0.1371]
[1763470370410,1.91319291,3051.6,3051.5,0.1371]
[1763470370805,0.74006215,3051.6,3051.5,0.1371]
[1763470371110,1.17313076,3051.7,3051.5,0.1371]
[1763470371311,1.91319291,3051.6,3051.5,0.1371]
[1763470371606,1.17313076,3051.6,3051.5,0.1371]
[1763470372516,1.91319291,3051.6,3051.5,0.1371]
[1763470373019,1.17313076,3051.6,3051.5,0.1371]
[1763470373215,1.91319291,3051.6,3051.5,0.1371]
[1763470373417,0.74006215,3051.6,3051.5,0.1371]
[1763470373909,1.75910207,3051.7,3051.5,0.1371]
[1763470374412,2.49916422,3051.6,3051.5,0.1371]
[1763470374814,1.75910207,3051.6,3051.5,0.1371]
[1763470375717,3.06061057,3051.8,3051.0,0.13994613]
[1763470375907,4.38473384,3051.3,3051.0,0.13994613]
[1763470376213,0.74006215,3051.2,3051.0,0.13994613]
[1763470376416,1.52307892,3051.2,3051.0,0.13994613]
[1763470377418,1.17693384,3051.1,3051.0,0.38804613]
[1763470377806,1.17693384,3051.2,3051.1,0.2326]
[1763470378012,4.38473384,3051.3,3051.2,0.2326]
[1763470378721,1.17693384,3051.7,3051.6,0.2326]
[1763470379017,1.17693384,3051.7,3051.5,0.1351]
[1763470379214,1.17693384,3051.7,3051.6,0.2326]
[1763470379413,1.76540076,3051.7,3051.6,0.2326]
[1763470379615,1.76540076,3051.7,3051.5,0.1351]
[1763470379813,1.76540076,3051.6,3051.5,0.1351]
[1763470380315,1.76540076,3051.6,3051.5,0.3677]
[1763470380614,1.76540076,3051.7,3051.6,0.2326]
[1763470380920,0.00395917,3051.8,3051.5,0.1351]
[1763470381218,1.76809842,3051.7,3051.6,0.2326]
[1763470381420,1.77205759,3051.8,3051.7,0.2326]
[1763470381625,1.1829365,3051.8,3051.7,0.2326]
[1763470382913,0.00395917,3051.8,3051.5,0.1351]
[1763470383114,1.1826681,3051.8,3051.7,0.2326]
[1763470383713,0.00395917,3051.8,3051.7,0.2326]
[1763470385020,1.1826681,3051.8,3051.5,0.1351]
[1763470386222,0.00395917,3051.8,3051.7,0.2326]
[1763470386521,4.38650893,3052.1,3052.0,0.3677]
[1763470387314,4.39004524,3052.1,3052.0,0.3677]
[1763470387916,4.39004524,3052.1,3052.0,0.1351]
[1763470388116,3.21133631,3052.1,3051.5,0.1351]
[1763470388316,1.91772155,3052.0,3051.5,0.1351]
[1763470389226,1.91772155,3052.0,3051.9,0.2326]
[1763470389425,1.91772155,3052.0,3051.5,0.1351]
[1763470389722,3.21133631,3052.1,3051.9,0.2326]
[1763470389723,4.38917766,3052.1,3051.9,0.2326]
[1763470389924,0.73989002,3052.0,3051.9,0.2326]
[1763470390116,1.91773137,3052.0,3051.5,0.1351]
[1763470390520,3.21133631,3052.1,3051.8,0.2326]
[1763470390521,0.73989002,3051.9,3051.8,0.2326]
[1763470390817,0.73989002,3052.0,3051.8,0.2326]
[1763470391022,0.73989002,3051.9,3051.8,0.2326]
[1763470391323,4.38917766,3052.1,3051.8,0.2326]
[1763470391324,0.73989002,3052.0,3051.8,0.2326]
[1763470391519,0.73989002,3051.9,3051.5,0.1351]
[1763470391717,4.38917766,3052.1,3052.0,0.3677]
[1763470391918,5.12909572,3052.1,3051.5,0.1351]
[1763470392226,0.73991806,3052.0,3051.5,0.1351]
[1763470392715,1.91775941,3052.0,3051.5,0.1351]
[1763470392914,1.17784135,3051.8,3051.5,0.1351]
[1763470393224,1.17784135,3051.7,3051.5,0.1351]
[1763470394718,1.76809842,3051.9,3051.5,0.1351]
[1763470394719,0.73991806,3051.6,3051.5,0.1351]
[1763470394926,1.91775941,3051.7,3051.5,0.1351]
[1763470395224,0.73991806,3051.6,3051.5,0.1351]
[1763470395632,1.17784135,3051.6,3051.0,0.13994613]
[1763470395829,1.17784135,3051.4,3051.0,0.13994613]
[1763470396023,0.73991806,3051.3,3051.0,0.13994613]
[1763470396222,0.73991806,3051.2,3051.0,0.13994613]
[1763470396527,1.17784135,3051.6,3051.5,0.1351]
[1763470397828,1.17784135,3051.6,3051.5,0.3677]
[1763470398129,4.38564135,3051.7,3051.6,0.2326]
[1763470398628,1.17866491,3051.7,3051.5,0.1351]
[1763470399428,1.17866491,3051.6,3051.5,0.1351]
[1763470399625,1.17866491,3051.7,3051.5,0.1351]
[1763470400129,1.17866491,3051.7,3051.6,0.2326]
[1763470400427,1.17866491,3051.7,3051.5,0.1351]
[1763470400428,1.76809842,3051.8,3051.5,0.1351]
[1763470400630,1.17872213,3051.6,3051.5,0.3721]
[1763470400931,1.17872213,3051.7,3051.5,0.3721]
[1763470401315,1.17872213,3051.7,3051.6,0.237]
[1763470402629,1.17872213,3051.7,3050.5,0.1415]
[1763470402630,11.1798,3051.7,3050.5,0.1415]
[1763470402829,4.38648923,3050.8,3050.7,0.237]
[1763470403330,3.2078,3050.8,3050.7,0.237]
[1763470403520,3.2078,3050.8,3050.7,0.24023068]
[1763470404327,3.2078,3050.8,3050.7,0.00323068]
[1763470404630,1.17868923,3051.0,3050.7,0.00323068]
[1763470405032,1.17868923,3051.1,3051.0,0.1415]
[1763470405528,3.2078,3051.2,3051.0,0.1415]
[1763470405529,4.97583384,3051.2,3051.0,0.1415]
[1763470406327,1.17664424,3051.1,3051.0,0.1415]
[1763470406527,4.97583384,3051.2,3051.0,0.1415]
[1763470406727,4.97583384,3051.2,3050.7,0.00323068]
[1763470406928,1.17662643,3051.0,3050.7,0.00323068]
[1763470408843,0.73553019,3050.9,3050.7,0.00323068]
[1763470409136,1.17662643,3051.1,3051.0,0.1466]
[1763470409326,1.91201245,3051.1,3051.0,0.1466]
[1763470410436,0.73538602,3051.1,3051.0,0.4073]
[1763470410634,0.73538602,3051.1,3051.0,0.1466]
[1763470412133,1.91201245,3051.1,3051.0,0.1466]
[1763470412733,1.91201245,3051.1,3050.7,0.00323068]
[1763470412934,1.91201245,3051.1,3051.0,0.1466]
[1763470413739,2.50341986,3051.1,3050.7,0.00323068]
[1763470414040,3.2078,3050.8,3050.7,0.00323068]
[1763470414240,3.94318602,3050.8,3050.7,0.00323068]
[1763470418347,3.94318602,3050.8,3050.0,3.3429]
[1763470418348,5.11839757,3050.8,3050.0,0.1351]
[1763470418540,3.2078,3050.2,3050.0,0.1351]
[1763470418842,3.2078,3050.6,3050.5,0.4073]
[1763470419037,3.2078,3051.4,3050.9,0.2607]
[1763470419246,3.2078,3051.4,3051.3,0.2607]
[1763470420746,3.2078,3051.4,3051.0,3.3544]
[1763470421842,3.2078,3051.4,3051.0,0.1466]
[1763470423148,4.97583384,3051.4,3051.0,0.1466]
[1763470425450,3.2078,3051.4,3051.3,0.2607]
[1763470426157,3.2078,3051.4,3051.0,3.3544]
[1763470430264,3.2078,3051.4,3051.0,0.1466]
[1763470430857,0.72788593,3051.3,3051.0,0.1466]
[1763470432464,1.76803384,3051.2,3050.9,0.00392293]
[1763470432659,3.2078,3051.0,3050.9,0.00392293]
[1763470432967,3.93568593,3051.0,3050.9,0.00392293]
[1763470433162,5.70371977,3051.0,3050.5,0.1466]
[1763470433461,3.2078,3050.6,3050.0,0.1351]
[1763470433669,0.72788593,3050.5,3050.0,0.1351]
[1763470434366,0.72788593,3050.5,3050.0,0.1389305]
[1763470435258,3.2078,3050.1,3050.0,0.1389305]
[1763470435469,3.93568593,3050.1,3050.0,0.0038305]
[1763470436770,3.93568593,3050.1,3050.0,0.1504305]
[1763470437467,3.93568593,3050.1,3050.0,0.0038305]
[1763470438558,3.93568593,3050.1,3050.0,0.1567305]
[1763470438761,3.93568593,3050.1,3050.0,0.4364305]
[1763470438962,2.81371107,3050.1,3050.0,0.4364305]
[1763470439361,3.2078,3050.5,3050.4,0.2797]
[1763470439563,3.2078,3051.0,3050.4,0.2797]
[1763470439873,3.2078,3051.0,3050.9,0.2797]
[1763470440065,3.93453662,3051.0,3050.9,0.2797]
[1763470441971,3.93453662,3051.0,3050.5,0.1529]
[1763470442173,0.72673662,3050.9,3050.5,0.1529]
[1763470442368,0.72673662,3050.9,3050.8,0.2797]
[1763470444775,0.72673662,3050.9,3050.5,0.1529]
[1763470445165,0.72673662,3050.9,3050.8,0.2797]
[1763470445370,3.2078,3051.0,3050.9,0.2797]
[1763470445668,3.2078,3051.0,3050.5,0.1529]
[1763470445669,3.93317199,3051.0,3050.5,0.1529]
[1763470445976,3.2078,3051.0,3050.5,0.1529]
[1763470447774,3.2078,3051.4,3050.5,0.1529]
[1763470447977,0.72552151,3051.3,3050.5,0.1529]
[1763470451386,0.72552151,3051.3,3051.0,0.1529]
[1763470452484,0.72552151,3051.3,3051.2,0.2797]
[1763470455797,0.72552151,3051.3,3051.0,0.1529]
[1763470457492,0.72598867,3051.2,3051.0,0.1529]
[1763470457694,0.72598867,3051.1,3051.0,0.1529]
[1763470458001,3.2078,3051.4,3051.0,0.1529]
[1763470459602,4.38055252,3051.4,3051.0,0.1529]
[1763470459901,1.17275252,3051.3,3051.0,0.1529]
[1763470461200,1.17275252,3051.2,3051.0,0.1529]
[1763470461499,1.17275252,3051.3,3051.0,0.1529]
[1763470462497,3.2078,3051.4,3051.0,0.1529]
[1763470465108,4.38055252,3051.4,3051.0,0.1529]
[1763470467307,1.17275252,3051.3,3051.0,0.1529]
[1763470468406,1.17275252,3051.2,3051.0,0.1529]
[1763470468598,0.77880281,3051.2,3051.0,0.1529]
[1763470469302,1.76490707,3051.4,3051.1,3.2078]
[1763470469502,1.76982583,3051.5,3051.1,3.2078]
[1763470469697,1.76982583,3051.5,3051.0,0.1529]
[1763470469898,1.76490707,3051.4,3051.0,0.1529]
[1763470470706,1.76982583,3051.5,3051.3,0.2659]
[1763470471397,1.76982583,3051.5,3051.0,0.1529]
[1763470471905,1.76982583,3051.5,3051.4,0.2659]
[1763470472403,1.76982583,3051.5,3051.0,0.1529]
[1763470472902,0.00491876,3051.5,3051.4,0.2659]
[1763470476106,1.876e-05,3051.5,3051.4,0.2659]
[1763470476903,1.876e-05,3051.5,3051.2,3.2078]
[1763470477104,1.876e-05,3051.5,3051.0,1.32957675]
[1763470477311,1.876e-05,3051.5,3051.4,0.2659]
[1763470478709,1.76490707,3052.0,3051.9,0.2659]
[1763470480207,1.76844338,3052.1,3052.0,0.4136]
[1763470480409,0.00353631,3052.1,3052.0,0.4136]
[1763470480902,0.00353631,3052.1,3052.0,0.1477]
[1763470481901,0.00353631,3052.1,3052.0,0.4136]
[1763470482106,0.00353631,3052.1,3052.0,0.1477]
[1763470484311,1.76844338,3052.1,3051.6,0.00491876]
[1763470484512,3.2078,3051.8,3051.6,0.00491876]
[1763470485410,3.2078,3051.8,3051.7,0.2659]
[1763470487718,3.2078,3051.8,3051.6,0.00491876]
[1763470489619,0.00353631,3052.1,3051.6,0.00491876]
[1763470490419,3.2078,3051.8,3051.6,0.00491876]
[1763470494922,4.97270707,3051.8,3051.6,0.00491876]
[1763470496323,3.2078,3051.8,3051.6,0.00491876]
[1763470499418,1.76591994,3051.7,3051.6,0.27081876]
[1763470500121,1.17693923,3051.7,3051.6,0.27081876]
[1763470500316,4.97371994,3051.8,3051.7,0.2454]
[1763470500822,4.97371994,3051.8,3051.6,0.00491876]
[1763470501024,4.97371994,3051.8,3051.7,0.2454]
[1763470501320,3.2078,3051.8,3051.7,0.2454]
[1763470503321,0.00491876,3052.3,3052.0,0.1481]
[1763470503530,0.00491876,3052.3,3052.2,3.4532]
[1763470504024,0.23481876,3052.3,3052.2,3.4532]
[1763470504229,0.23900391,3052.3,3052.2,3.45559491]
[1763470504417,0.00910391,3052.3,3052.2,3.45559491]
[1763470504821,0.23900391,3052.3,3052.2,3.45559491]
[1763470505220,0.23900391,3052.3,3052.2,3.21019491]
[1763470505419,0.23900391,3052.3,3052.2,0.00239491]
[1763470507522,0.23900391,3052.3,3052.2,0.24779491]
[1763470509928,0.00910391,3052.3,3052.2,0.24779491]
[1763470510531,3.2078,3053.3,3052.3,0.2454]
[1763470510728,3.2078,3053.3,3052.2,9.27839491]
[1763470510729,3.4377,3053.3,3053.2,0.2454]
[1763470511129,3.2078,3053.3,3053.2,0.2454]
[1763470511333,14.51771405,3053.6,3053.5,0.2454]
[1763470511632,0.2299,3053.3,3053.2,3.21271876]
[1763470512633,0.2299,3053.3,3053.2,3.45811876]
[1763470512832,0.1461,3053.5,3053.2,3.45811876]
[1763470513029,0.376,3053.5,3053.4,0.2454]
[1763470513338,14.29194233,3053.6,3053.5,0.2454]
[1763470513830,0.1461,3053.5,3053.2,3.21271876]
[1763470514141,0.2299,3053.3,3053.2,3.45811876]
[1763470514342,0.2299,3053.3,3053.2,3.21271876]
[1763470514632,0.1461,3053.5,3053.2,3.45811876]
[1763470515433,0.376,3053.5,3053.4,0.2454]
[1763470515624,0.2299,3053.3,3053.2,3.45811876]
[1763470515827,0.1461,3053.5,3053.2,3.45811876]
[1763470516238,0.376,3053.5,3053.4,0.2454]
[1763470516637,0.2299,3053.3,3053.2,3.21271876]
[1763470517735,3.4377,3053.3,3053.2,0.00491876]
[1763470519535,11.4047,3053.3,3053.2,0.00491876]
[1763470519841,11.4047,3053.3,3052.3,3.2078]
[1763470520435,0.2555,3052.3,3052.2,0.25659491]
[1763470520635,0.2555,3052.3,3052.2,0.00239491]
[1763470520831,0.2555,3052.3,3052.2,0.25659491]
[1763470521248,0.2555,3052.3,3052.2,0.00239491]
[1763470522534,0.2555,3051.9,3051.8,2.49964836]
[1763470523545,0.2555,3051.9,3051.8,2.50344099]
[1763470523840,0.2555,3051.9,3051.8,0.00379263]
[1763470529645,0.1521,3051.5,3050.5,3.2837]
[1763470529837,3.2078,3051.3,3050.5,3.2837]
[1763470530743,3.21191368,3051.3,3050.5,3.28647224]
[1763470530949,3.21191368,3051.3,3050.5,0.07867224]
[1763470533549,3.21191368,3051.3,3050.5,0.00277224]
[1763470534145,0.1521,3051.0,3050.5,0.39457224]
[1763470534454,0.2546,3050.6,3050.5,0.00277224]
[1763470534646,0.2546,3050.6,3050.5,0.25597224]
[1763470534947,0.2546,3050.6,3050.5,0.00277224]
[1763470535140,0.1521,3050.5,3049.5,3.3665]
[1763470535340,3.21271876,3050.3,3049.5,3.3665]
[1763470536238,3.21271876,3050.3,3049.5,3.36956535]
[1763470539555,3.21271876,3050.3,3049.5,3.21086535]
[1763470541045,0.2546,3049.6,3049.5,3.46406535]
[1763470541757,0.2546,3049.6,3049.5,0.25626535]
[1763470545758,0.2546,3049.6,3049.5,0.00306535]
[1763470545959,0.2546,3049.6,3049.5,0.25626535]
[1763470546350,0.2546,3049.6,3049.5,0.00306535]
[1763470550356,0.2546,3049.6,3049.5,0.25626535]
[1763470550657,0.2546,3049.6,3049.5,0.00306535]
[1763470551154,0.2546,3049.2,3048.7,3.2406014]
[1763470551365,0.2546,3048.8,3048.7,0.0328014]
[1763470551658,0.2546,3048.2,3048.1,3.2078]
[1763470551860,0.2546,3048.2,3048.1,3.461]
[1763470552264,0.25699413,3048.2,3048.1,3.46397453]
[1763470552650,0.00239413,3048.2,3048.1,3.46397453]
[1763470553162,0.00239413,3048.2,3048.1,9.46397453]
[1763470553366,0.00491876,3048.5,3048.4,0.2532]
[1763470554261,0.00878176,3048.5,3048.4,0.2532]
[1763470555359,0.41548176,3048.5,3048.4,0.2532]
[1763470556150,0.26338176,3048.5,3048.4,0.2532]
[1763470557059,0.00878176,3048.5,3048.4,0.2532]
[1763470557261,0.2518,3047.1,3047.0,1.17914262]
[1763470557564,3.21614546,3047.5,3047.0,0.3797]
[1763470558371,0.2518,3047.1,3047.0,0.00402993]
[1763470560161,0.2518,3046.8,3046.7,3.07886363]
[1763470560363,0.2518,3046.8,3046.7,0.2345]
[1763470560673,14.47064985,3047.9,3047.5,0.1452]
[1763470561058,0.2518,3047.6,3047.3,3.2078]
[1763470561254,0.2518,3047.4,3047.3,0.00251488]
[1763470563664,0.2518,3046.6,3046.1,3.2078]
[1763470563860,0.00491876,3046.7,3046.6,0.2345]
[1763470564380,0.2518,3046.6,3046.1,3.2078]
[1763470564577,0.2518,3046.6,3046.1,3.21113434]
[1763470565068,0.00491876,3046.7,3046.6,0.2345]
[1763470566764,0.2518,3046.6,3046.1,3.21113434]
[1763470567060,0.00491876,3046.7,3046.1,3.21113434]
[1763470567468,0.00491876,3046.7,3046.6,0.2345]
[1763470567768,1.876e-05,3046.7,3046.6,0.2345]
[1763470570469,14.47064985,3047.9,3047.1,0.2345]
[1763470570470,3.2078,3047.2,3047.1,0.2345]
[1763470570868,3.2078,3047.7,3047.1,3.4423]
[1763470571380,0.2518,3047.2,3047.1,0.2345]
[1763470571674,0.00491876,3047.5,3047.1,0.2345]
[1763470572056,0.00491876,3047.5,3047.4,0.2345]
[1763470572660,0.2518,3047.1,3046.7,3.2078]
[1763470572865,3.2078,3046.8,3046.7,0.2345]
[1763470574174,3.2078,3047.2,3047.1,0.2345]
[1763470574373,1.16872098,3048.1,3048.0,0.3797]
[1763470574568,0.003863,3048.5,3048.4,0.2345]
[1763470574874,0.003863,3048.5,3048.4,0.23723405]
[1763470581874,0.00491876,3048.8,3048.7,0.2565]
[1763470582072,0.28241876,3048.8,3048.7,0.2565]
[1763470582284,0.00491876,3048.8,3048.7,0.2565]
[1763470582872,0.00491876,3048.8,3048.5,0.1537]
[1763470582873,0.28487299,3048.8,3048.5,0.1537]
[1763470583078,0.00737299,3048.8,3048.7,0.2565]
[1763470583991,0.28487299,3048.8,3048.7,0.2565]
[1763470584281,0.28487299,3048.8,3048.5,0.1537]
[1763470584481,0.28487299,3048.8,3048.4,0.00273405]
[1763470584673,3.2078,3048.6,3048.4,0.00273405]
[1763470585279,0.4283,3048.5,3048.4,0.00273405]
[1763470585987,0.2775,3048.2,3047.7,3.2078]
[1763470586183,3.2078,3048.1,3047.7,3.2078]
[1763470586384,3.2078,3048.1,3048.0,0.4102]
[1763470586588,0.1508,3048.5,3048.0,0.4102]
[1763470586977,3.2078,3048.6,3048.0,0.41328319]
[1763470588394,0.1116,3048.5,3048.0,0.41328319]
[1763470588594,0.1116,3048.5,3048.0,0.25958319]
[1763470588893,3.4765,3048.1,3048.0,0.00308319]
[1763470593191,3.2078,3048.1,3048.0,0.43008319]
[1763470593788,3.2078,3048.6,3048.0,3.63788319]
[1763470593984,3.2078,3048.6,3048.0,0.43008319]
[1763470594188,0.2687,3048.1,3048.0,0.00308319]
[1763470596094,0.2687,3047.2,3046.7,3.2078]
[1763470596606,0.2687,3046.8,3046.0,0.1616]
[1763470596895,3.2078,3046.6,3046.0,0.1616]
[1763470597094,0.00746275,3046.6,3046.0,0.16577967]
[1763470598091,0.00746275,3046.6,3046.5,0.427]
[1763470598295,3.2078,3047.0,3046.9,0.2654]
[1763470599088,0.2687,3046.6,3046.5,3.2078]
[1763470599287,0.00258649,3046.6,3046.5,3.6348]
[1763470600995,0.00258649,3046.6,3046.5,9.6348]
[1763470601200,0.00491876,3046.9,3046.8,0.2654]
[1763470602198,0.00765566,3046.9,3046.8,0.2654]
[1763470604094,0.27635566,3046.9,3046.8,0.2654]
[1763470604299,3.48415566,3046.9,3046.5,0.1616]
[1763470604499,0.00765566,3046.9,3046.8,0.2654]
[1763470604998,0.27635566,3046.9,3046.5,3.3694]
[1763470605400,0.27635566,3046.9,3046.5,3.6348]
[1763470605401,0.2687,3046.6,3046.5,3.6348]
[1763470606302,0.2687,3046.6,3046.5,3.2078]
[1763470607205,0.2687,3046.6,3046.2,0.00491876]
[1763470608196,0.2687,3046.3,3046.2,0.00491876]
[1763470611003,0.2687,3045.6,3045.2,3.2078]
[1763470611501,0.2687,3045.6,3045.0,0.1616]
[1763470611899,0.2687,3045.6,3045.0,0.16586169]
[1763470613008,3.2078,3045.8,3045.0,0.00426169]
[1763470613009,0.2687,3045.1,3045.0,0.00426169]
[1763470613202,0.1577,3045.5,3045.0,0.16586169]
[1763470613405,0.27361876,3045.4,3045.3,0.2654]
[1763470613610,3.48141876,3045.4,3045.0,0.16586169]
[1763470613804,0.2687,3045.1,3045.0,0.00426169]
[1763470614912,0.2687,3044.5,3044.4,3.2078]
[1763470615312,3.3655,3045.0,3044.5,0.1616]
[1763470615508,0.4264,3044.5,3044.4,3.07954711]
[1763470615707,0.1577,3044.5,3044.4,0.00337279]
[1763470616013,0.27152427,3044.5,3044.4,0.00337279]
[1763470617704,0.00282427,3044.5,3044.4,0.28537279]
[1763470618307,0.00282427,3044.5,3044.4,3.49317279]
[1763470619014,3.2078,3045.1,3045.0,0.4596]
[1763470619316,3.5098,3045.1,3045.0,0.282]
[1763470619509,3.2078,3045.1,3045.0,0.4596]
[1763470620013,3.21050527,3045.1,3045.0,0.4596]
[1763470620513,5.27e-06,3045.1,3045.0,0.4596]
[1763470620905,5.27e-06,3045.1,3045.0,9.7436]
[1763470621214,3.2078,3045.9,3045.3,0.282]
[1763470621416,0.302,3045.4,3045.3,0.282]
[1763470621613,3.2078,3045.9,3045.3,0.282]
[1763470622113,3.2157968,3045.9,3045.3,0.286927]
[1763470622310,3.5098,3045.4,3045.3,0.004927]
[1763470624314,3.2078,3045.4,3045.3,0.286927]
[1763470625326,3.5098,3045.4,3045.3,0.004927]
[1763470625821,3.5098,3045.4,3044.6,3.2078]
[1763470626419,3.2078,3044.9,3044.5,0.1776]
[1763470626832,3.2078,3045.4,3044.8,0.282]
[1763470627125,0.302,3044.9,3044.8,0.282]
[1763470627517,3.2078,3045.4,3044.8,0.282]
[1763470627718,0.302,3044.9,3044.6,3.2078]
[1763470627920,3.2078,3045.4,3044.8,0.282]
[1763470628828,3.2078,3045.4,3045.3,0.282]
[1763470629129,3.5098,3045.4,3045.3,0.282]
[1763470629625,3.5098,3045.4,3045.0,0.1776]
[1763470629823,3.2078,3045.4,3045.3,0.282]
[1763470630226,0.4789,3044.5,3044.4,0.00337279]
[1763470630416,3.2078,3044.5,3044.4,0.282]
[1763470630614,3.2078,3044.9,3044.8,0.282]
[1763470630833,3.2078,3045.4,3044.8,0.282]
[1763470631326,3.2078,3045.4,3045.3,0.282]
[1763470631715,3.5098,3045.4,3045.0,3.3854]
[1763470632620,0.302,3045.1,3045.0,3.2078]
[1763470632820,3.2078,3045.4,3045.0,3.4898]
[1763470633028,3.2078,3045.4,3045.0,3.6674]
[1763470633731,3.2078,3045.4,3044.8,0.28541364]
[1763470634124,3.2078,3045.4,3045.3,0.282]
[1763470634527,3.2078,3045.8,3045.7,0.282]
[1763470635125,0.302,3045.2,3045.0,0.1776]
[1763470635425,3.2078,3045.7,3045.1,0.282]
[1763470635927,0.0079968,3045.9,3045.1,0.282]
[1763470636130,0.302,3045.2,3045.0,3.3854]